bitfinex-derivatives/quotes_BTCF0:USTF0_20240830
["timestamp","ask_amount","ask_price","bid_price","bid_amount"]
[1725000516613,0.27387239,59233.0,59228.0,0.3608]
[1725000516998,0.27487239,59233.0,59228.0,0.3608]
[1725000518200,0.19046439,59233.0,59230.0,0.29]
[1725000518506,0.19046439,59233.0,59232.0,0.3608]
[1725000518902,0.19046439,59233.0,59232.0,0.86728]
[1725000519807,0.18946439,59233.0,59232.0,1.46728]
[1725000520001,0.19046439,59233.0,59232.0,1.46728]
[1725000520600,0.002,59233.0,59232.0,1.46728]
[1725000521296,0.001,59233.0,59232.0,1.46728]
[1725000521500,0.002,59233.0,59232.0,1.46728]
[1725000522205,0.19676814,59233.0,59232.0,0.50428]
[1725000522708,0.19676814,59233.0,59232.0,0.37098394]
[1725000525414,0.19676814,59233.0,59232.0,0.45539294]
[1725000525802,0.002,59233.0,59232.0,1.56187294]
[1725000527412,0.002,59233.0,59232.0,1.60977294]
[1725000530813,0.002,59233.0,59232.0,1.00977294]
[1725000531823,0.002,59233.0,59232.0,1.60977294]
[1725000532206,0.002,59233.0,59232.0,0.45539294]
[1725000534612,0.00025304,59240.0,59239.0,0.084399]
[1725000534913,0.084374,59257.0,59252.0,0.08438]
[1725000535219,0.084374,59257.0,59256.0,0.3608]
[1725000535724,0.27822182,59257.0,59256.0,0.3608]
[1725000535912,0.19384782,59257.0,59256.0,0.445175]
[1725000536233,0.18292451,59258.0,59256.0,0.445175]
[1725000536521,0.00025325,59262.0,59261.0,0.084368]
[1725000536820,0.00025325,59262.0,59261.0,0.735168]
[1725000537012,0.18317776,59262.0,59261.0,0.735168]
[1725000537820,0.00025325,59262.0,59261.0,1.841408]
[1725000538820,0.00025325,59262.0,59261.0,1.845408]
[1725000540121,0.00125325,59262.0,59261.0,1.853408]
[1725000540517,0.0509,59284.0,59275.0,0.084347]
[1725000540830,0.23628921,59279.0,59277.0,0.3608]
[1725000541120,0.29,59278.0,59277.0,0.3608]
[1725000541315,0.29,59278.0,59274.0,0.14344]
[1725000541316,0.79608,59278.0,59274.0,0.14344]
[1725000541623,0.08435,59274.0,59272.0,0.00025303]
[1725000541822,0.08335,59274.0,59272.0,0.00025303]
[1725000542027,0.68552706,59273.0,59272.0,0.00025303]
[1725000542535,1.28552706,59273.0,59272.0,0.00025303]
[1725000543217,1.12551275,59273.0,59272.0,0.00025303]
[1725000543616,1.12451275,59273.0,59272.0,0.00025303]
[1725000544522,1.12451275,59273.0,59272.0,0.00125303]
[1725000545123,1.13651275,59273.0,59272.0,0.00225303]
[1725000545521,1.13651275,59273.0,59267.0,0.3608]
[1725000545826,0.29,59268.0,59267.0,0.3608]
[1725000546116,0.46723108,59268.0,59267.0,0.3608]
[1725000546320,0.51523108,59268.0,59267.0,0.3608]
[1725000546623,0.51523108,59268.0,59267.0,0.3618]
[1725000547425,0.52223108,59268.0,59267.0,0.3618]
[1725000547827,0.52323108,59268.0,59267.0,0.3618]
[1725000548624,0.28223108,59268.0,59267.0,0.52779483]
[1725000550020,0.28523108,59268.0,59267.0,0.52779483]
[1725000550419,0.28423108,59268.0,59267.0,0.52679483]
[1725000550627,0.28123108,59268.0,59267.0,0.52779483]
[1725000551029,0.28123108,59268.0,59267.0,0.52679483]
[1725000552333,0.28123108,59268.0,59267.0,0.3618]
[1725000552539,0.28123108,59268.0,59267.0,0.52679483]
[1725000553227,0.28123108,59268.0,59267.0,0.61115383]
[1725000553228,0.28323108,59268.0,59267.0,0.61115383]
[1725000553831,0.28123108,59268.0,59267.0,0.61115383]
[1725000554430,0.28323108,59268.0,59267.0,0.61115383]
[1725000558743,0.23423108,59268.0,59267.0,0.61115383]
[1725000562522,0.18623108,59268.0,59267.0,0.61115383]
[1725000562724,0.18623108,59268.0,59267.0,1.50115383]
[1725000562932,0.009,59268.0,59267.0,1.50115383]
[1725000563135,0.009,59268.0,59267.0,0.90115383]
[1725000563332,0.19752509,59268.0,59267.0,0.61115383]
[1725000563537,0.19752509,59268.0,59267.0,0.75251383]
[1725000564245,0.19752509,59268.0,59267.0,0.61115383]
[1725000566637,0.19752509,59268.0,59267.0,0.97195383]
[1725000574142,0.28188309,59268.0,59267.0,0.88759483]
[1725000576044,0.28188309,59268.0,59267.0,0.7226]
[1725000577147,0.57188309,59268.0,59267.0,0.3618]
[1725000577344,1.07804309,59268.0,59267.0,0.3618]
[1725000578038,1.08831624,59268.0,59267.0,0.3618]
[1725000578248,0.58215624,59268.0,59267.0,0.3618]
[1725000578542,1.68831624,59268.0,59267.0,0.3618]
[1725000578742,0.084365,59263.0,59262.0,0.00025303]
[1725000579049,0.735165,59263.0,59262.0,0.00025303]
[1725000579346,1.42017103,59263.0,59262.0,0.00025303]
[1725000579540,1.13017103,59263.0,59262.0,0.00025303]
[1725000579736,0.62393103,59263.0,59262.0,0.16524786]
[1725000579938,0.62493103,59263.0,59262.0,0.16524786]
[1725000581266,0.62893103,59263.0,59262.0,0.16524786]
[1725000581746,0.26813103,59263.0,59262.0,0.16524786]
[1725000582747,0.26813103,59263.0,59262.0,0.17537234]
[1725000586246,0.26813103,59263.0,59262.0,0.00025303]
[1725000586439,0.77437103,59263.0,59262.0,0.00025303]
[1725000587040,0.26813103,59263.0,59262.0,0.00025303]
[1725000588753,0.26413103,59263.0,59262.0,0.00025303]
[1725000588943,0.27713103,59263.0,59262.0,0.00125303]
[1725000589136,0.28013103,59263.0,59262.0,0.00225303]
[1725000589647,0.29413103,59263.0,59262.0,0.00225303]
[1725000591540,0.29413103,59263.0,59262.0,0.16724786]
[1725000591936,0.28013103,59263.0,59262.0,0.16624786]
[1725000592136,0.26713103,59263.0,59262.0,0.16624786]
[1725000592351,0.18276603,59263.0,59262.0,0.16624786]
[1725000592836,0.17876603,59263.0,59262.0,0.16524786]
[1725000593042,0.18276603,59263.0,59262.0,0.16524786]
[1725000593249,0.004,59263.0,59262.0,0.53961386]
[1725000593450,0.18421846,59263.0,59262.0,0.53961386]
[1725000594248,0.18721846,59263.0,59262.0,0.53961386]
[1725000594440,0.18921846,59263.0,59262.0,0.53961386]
[1725000594853,0.18521846,59263.0,59262.0,0.53961386]
[1725000595951,0.18421846,59263.0,59262.0,0.53961386]
[1725000596953,0.18421846,59263.0,59262.0,0.68121386]
[1725000597741,0.18421846,59263.0,59262.0,0.39121386]
[1725000598550,0.18421846,59263.0,59262.0,0.68121386]
[1725000604850,0.004,59263.0,59262.0,0.68121386]
[1725000608551,0.004,59263.0,59262.0,0.53961386]
[1725000608750,0.18392824,59263.0,59262.0,0.68121386]
[1725000613760,0.18392824,59263.0,59262.0,0.53961386]
[1725000614752,0.18392824,59263.0,59262.0,0.16524786]
[1725000615353,0.26829324,59263.0,59262.0,0.16524786]
[1725000629988,0.26829324,59263.0,59262.0,0.28524786]
[1725000633578,0.47265824,59263.0,59257.0,0.01026679]
[1725000633786,0.084381,59252.0,59251.0,0.0039]
[1725000633988,0.084383,59250.0,59249.0,0.3608]
[1725000634386,0.27048935,59250.0,59249.0,0.52579483]
[1725000634590,0.27048935,59250.0,59249.0,0.535947]
[1725000634995,0.26648935,59250.0,59249.0,0.535947]
[1725000635693,0.26648935,59250.0,59249.0,0.548947]
[1725000635998,0.26248935,59250.0,59249.0,0.548947]
[1725000636695,0.26348935,59250.0,59249.0,0.552947]
[1725000637297,0.26348935,59250.0,59249.0,0.672947]
[1725000639587,0.26348935,59250.0,59249.0,0.552947]
[1725000641396,0.02601069,59250.0,59249.0,0.552947]
[1725000641902,0.11039369,59250.0,59249.0,0.552947]
[1725000646803,0.11039369,59250.0,59249.0,0.38795217]
[1725000648404,0.11039369,59250.0,59249.0,0.3778]
[1725000649397,1.30109669,59250.0,59249.0,0.017]
[1725000650499,1.31136399,59250.0,59249.0,0.017]
[1725000650696,0.084391,59245.0,59244.0,0.01025804]
[1725000650895,0.084396,59242.0,59239.0,0.1692]
[1725000651303,0.084396,59242.0,59241.0,0.16499483]
[1725000651607,0.26156303,59242.0,59241.0,0.28499483]
[1725000652611,0.26056303,59242.0,59241.0,0.28499483]
[1725000653395,0.26056303,59242.0,59241.0,0.28899483]
[1725000655511,0.26056303,59242.0,59241.0,0.16899483]
[1725000656005,0.38056303,59242.0,59241.0,0.16899483]
[1725000657397,0.26056303,59242.0,59241.0,0.16899483]
[1725000658002,0.26256303,59242.0,59241.0,0.16899483]
[1725000658508,0.38256303,59242.0,59241.0,0.16899483]
[1725000659105,0.38256303,59242.0,59241.0,0.16699483]
[1725000660803,0.38256303,59242.0,59241.0,0.16599483]
[1725000661406,0.38056303,59242.0,59241.0,0.16599483]
[1725000661601,0.38456303,59242.0,59241.0,0.16599483]
[1725000662404,0.38456303,59242.0,59241.0,0.001]
[1725000662813,0.084404,59236.0,59233.0,0.3647]
[1725000663008,0.12,59234.0,59233.0,0.3608]
[1725000663411,0.30753586,59234.0,59233.0,0.52579483]
[1725000663910,0.30753586,59234.0,59233.0,0.53595392]
[1725000664120,0.39294186,59234.0,59233.0,0.54395392]
[1725000665809,0.39394186,59234.0,59233.0,0.54395392]
[1725000671022,0.27394186,59234.0,59233.0,0.54395392]
[1725000671619,0.10430697,59234.0,59233.0,0.54395392]
[1725000672023,0.22430697,59234.0,59233.0,0.90475392]
[1725000675319,0.22430697,59234.0,59233.0,0.73975909]
[1725000676926,0.22430697,59234.0,59233.0,0.37895909]
[1725000680926,0.22430697,59234.0,59233.0,0.008]
[1725000683627,0.30871297,59234.0,59233.0,0.008]
[1725000684929,0.01990097,59234.0,59233.0,0.4888]
[1725000685122,0.01990097,59234.0,59233.0,0.79143483]
[1725000686130,0.01990097,59234.0,59233.0,0.87584283]
[1725000689029,0.31807757,59253.0,59246.0,0.084389]
[1725000689230,0.43417757,59253.0,59252.0,0.50589386]
[1725000689422,0.12,59253.0,59252.0,0.3608]
[1725000689628,0.30357238,59253.0,59252.0,0.3608]
[1725000690438,0.31257238,59253.0,59252.0,0.50589386]
[1725000690938,0.31757238,59253.0,59252.0,0.50589386]
[1725000691144,0.32457238,59253.0,59252.0,0.50589386]
[1725000691523,0.32457238,59253.0,59252.0,0.51594737]
[1725000691923,0.32557238,59253.0,59252.0,0.51694737]
[1725000692733,0.32457238,59253.0,59252.0,0.51694737]
[1725000695339,0.20457238,59253.0,59252.0,0.51694737]
[1725000695631,0.32457238,59253.0,59252.0,0.51694737]
[1725000695839,0.20457238,59253.0,59252.0,0.60132837]
[1725000698635,0.20457238,59253.0,59252.0,0.51694737]
[1725000698943,0.28895138,59253.0,59252.0,0.51694737]
[1725000705049,0.28895138,59253.0,59252.0,0.15614737]
[1725000709142,0.28895138,59253.0,59252.0,0.14609386]
[1725000711745,0.08708824,59253.0,59252.0,0.14609386]
[1725000712147,0.27052318,59253.0,59252.0,0.14609386]
[1725000712642,0.26781394,59253.0,59252.0,0.50689386]
[1725000712845,0.27781394,59253.0,59252.0,0.50689386]
[1725000713246,0.26681394,59253.0,59252.0,0.50689386]
[1725000713449,0.27881394,59253.0,59252.0,0.50689386]
[1725000713952,0.27781394,59253.0,59252.0,0.50689386]
[1725000715056,0.27381394,59253.0,59252.0,0.50689386]
[1725000715651,0.27381394,59253.0,59252.0,0.14509386]
[1725000715852,0.27381394,59253.0,59252.0,0.50689386]
[1725000716049,0.26281394,59253.0,59252.0,0.50689386]
[1725000716244,0.26681394,59253.0,59252.0,0.50789386]
[1725000716446,0.26681394,59253.0,59252.0,0.50689386]
[1725000717453,0.26681394,59253.0,59252.0,0.50589386]
[1725000717848,0.26281394,59253.0,59252.0,0.50589386]
[1725000718044,0.26681394,59253.0,59252.0,0.50689386]
[1725000719657,0.26981394,59253.0,59252.0,0.50689386]
[1725000721858,0.30543494,59253.0,59252.0,0.50689386]
[1725000722859,0.18543494,59253.0,59252.0,0.50689386]
[1725000723557,0.18543494,59253.0,59252.0,0.59127486]
[1725000725756,0.007,59253.0,59252.0,1.19127486]
[1725000725952,0.007,59253.0,59252.0,1.20027486]
[1725000726155,0.0039,59271.0,59264.0,0.084363]
[1725000726463,0.085952,59272.0,59270.0,0.13784083]
[1725000726656,0.12,59271.0,59270.0,0.13784083]
[1725000726855,0.30481544,59271.0,59270.0,0.13784083]
[1725000727266,0.18481544,59271.0,59270.0,0.13784083]
[1725000727657,0.005,59271.0,59270.0,0.13784083]
[1725000727971,0.19203937,59271.0,59270.0,0.13784083]
[1725000729160,0.19203937,59271.0,59270.0,0.13884083]
[1725000729365,0.18803937,59271.0,59270.0,0.13984083]
[1725000729665,0.18803937,59271.0,59270.0,0.50064083]
[1725000729864,0.18803937,59271.0,59270.0,0.61964083]
[1725000729865,0.18703937,59271.0,59270.0,0.61964083]
[1725000730068,0.18803937,59271.0,59270.0,0.71844083]
[1725000730259,0.001,59271.0,59270.0,0.71844083]
[1725000730566,0.18004409,59271.0,59270.0,0.71844083]
[1725000731068,0.18004409,59271.0,59270.0,0.72862883]
[1725000731264,0.001,59271.0,59270.0,1.695948]
[1725000732662,0.00025303,59276.0,59275.0,0.084348]
[1725000732865,0.00025303,59276.0,59275.0,1.071268]
[1725000733065,0.00025303,59276.0,59275.0,1.671268]
[1725000733970,0.00125303,59276.0,59275.0,1.672268]
[1725000735576,0.084322,59293.0,59275.0,1.58792]
[1725000735766,0.084322,59293.0,59291.0,0.12]
[1725000735966,0.18531396,59292.0,59291.0,0.12]
[1725000736966,0.18531396,59292.0,59291.0,0.121]
[1725000737869,0.0469,59296.0,59291.0,0.121]
[1725000738069,0.08457003,59297.0,59294.0,0.3608]
[1725000738070,0.18712713,59295.0,59294.0,0.3608]
[1725000738278,0.00025303,59297.0,59295.0,0.084319]
[1725000738574,0.12,59313.0,59295.0,0.084319]
[1725000738575,0.084287,59318.0,59296.0,0.50592]
[1725000738873,0.084287,59318.0,59313.0,0.3608]
[1725000739074,0.084287,59318.0,59313.0,0.49824]
[1725000739267,0.17610738,59317.0,59313.0,0.49824]
[1725000739575,0.12,59314.0,59313.0,0.3608]
[1725000740076,0.18773888,59314.0,59313.0,0.3608]
[1725000740278,0.18773888,59314.0,59313.0,0.3618]
[1725000740574,0.084291,59315.0,59313.0,0.3618]
[1725000740777,0.18773888,59314.0,59313.0,0.3618]
[1725000741167,0.18773888,59314.0,59313.0,0.4992]
[1725000741575,0.18481754,59320.0,59313.0,0.4992]
[1725000741873,0.084286,59319.0,59313.0,0.51052593]
[1725000742270,0.18355075,59318.0,59313.0,0.51052593]
[1725000743063,0.00025303,59321.0,59320.0,0.084284]
[1725000743376,0.00025303,59321.0,59320.0,0.3608]
[1725000743564,0.18392803,59321.0,59320.0,0.3608]
[1725000744877,0.18392803,59321.0,59320.0,0.3618]
[1725000745175,1.65044803,59321.0,59320.0,0.001]
[1725000745570,0.084292,59314.0,59313.0,0.001]
[1725000745771,0.735092,59314.0,59313.0,0.001]
[1725000745965,0.083298,59310.0,59309.0,0.36105303]
[1725000746177,0.082298,59310.0,59309.0,0.36105303]
[1725000746378,0.26542888,59310.0,59309.0,0.36105303]
[1725000746581,0.26442888,59310.0,59309.0,0.36105303]
[1725000747271,0.26442888,59310.0,59309.0,0.36205303]
[1725000747669,0.26442888,59310.0,59309.0,0.36105303]
[1725000747875,0.26442888,59310.0,59309.0,0.36205303]
[1725000748073,0.26442888,59310.0,59309.0,0.36305303]
[1725000749373,0.26542888,59310.0,59309.0,0.36305303]
[1725000749881,0.26642888,59310.0,59309.0,0.36305303]
[1725000750172,0.26742888,59310.0,59309.0,0.36305303]
[1725000751278,0.62822888,59310.0,59309.0,0.00225303]
[1725000751778,1.65177088,59310.0,59299.0,0.0039]
[1725000751981,0.6508,59302.0,59295.0,0.0039]
[1725000752180,0.0454,59301.0,59290.0,0.14780724]
[1725000752370,0.23675727,59301.0,59295.0,0.3608]
[1725000752776,0.23475727,59301.0,59293.0,0.3608]
[1725000752972,0.08432,59295.0,59293.0,0.3608]
[1725000753375,0.22384052,59294.0,59293.0,0.3608]
[1725000753971,0.17544052,59294.0,59293.0,0.3608]
[1725000754678,0.17744052,59294.0,59293.0,0.3608]
[1725000755882,0.18144052,59294.0,59293.0,0.3608]
[1725000760889,0.18144052,59294.0,59293.0,0.445122]
[1725000761590,0.17744052,59294.0,59293.0,0.445122]
[1725000761790,0.18144052,59294.0,59293.0,0.445122]
[1725000762694,0.18244052,59294.0,59293.0,0.445122]
[1725000763285,0.17944052,59294.0,59293.0,0.445122]
[1725000763491,0.18244052,59294.0,59293.0,0.445122]
[1725000772708,0.007,59294.0,59293.0,0.445122]
[1725000773301,0.084311,59301.0,59295.0,0.084318]
[1725000773497,0.00025303,59304.0,59300.0,0.29]
[1725000773800,0.18361315,59303.0,59300.0,0.29]
[1725000774498,0.006,59301.0,59300.0,0.29]
[1725000774902,0.19452436,59301.0,59300.0,0.374312]
[1725000775304,0.19152436,59301.0,59300.0,0.374312]
[1725000775608,0.003,59301.0,59300.0,0.375312]
[1725000776104,0.003,59301.0,59300.0,1.481192]
[1725000776600,0.003,59303.0,59302.0,0.084309]
[1725000776806,0.003,59303.0,59302.0,0.445109]
[1725000777002,0.00025303,59304.0,59303.0,0.084308]
[1725000777205,0.00025303,59304.0,59303.0,0.685088]
[1725000777404,0.00025303,59304.0,59303.0,1.285088]
[1725000778209,0.00025303,59304.0,59303.0,0.686088]
[1725000778408,0.00025303,59304.0,59303.0,0.823408]
[1725000778603,0.00025303,59304.0,59303.0,1.423408]
[1725000778810,0.00025303,59304.0,59303.0,1.424408]
[1725000779014,0.00025303,59304.0,59303.0,0.824408]
[1725000781212,0.00025303,59304.0,59303.0,0.829408]
[1725000781403,0.00025303,59304.0,59303.0,0.835408]
[1725000781606,0.00025303,59304.0,59303.0,0.329528]
[1725000781914,0.00025303,59304.0,59303.0,0.325528]
[1725000782100,0.00025303,59304.0,59303.0,0.188208]
[1725000782302,0.00025303,59304.0,59303.0,0.280228]
[1725000783519,0.00025303,59304.0,59303.0,0.283228]
[1725000783714,0.00025303,59304.0,59303.0,0.280228]
[1725000784111,0.00025303,59304.0,59303.0,0.278228]
[1725000784703,0.00025303,59304.0,59303.0,0.279228]
[1725000784908,0.00025303,59304.0,59303.0,0.280228]
[1725000785207,0.00025303,59304.0,59303.0,0.226628]
[1725000785512,0.18066455,59304.0,59303.0,0.229628]
[1725000786909,0.18066455,59304.0,59303.0,0.221628]
[1725000787113,0.18066455,59304.0,59303.0,0.228628]
[1725000787715,0.18066455,59304.0,59303.0,0.224628]
[1725000787913,0.0916,59319.0,59315.0,0.08429]
[1725000788111,0.0916,59319.0,59318.0,0.3608]
[1725000788510,0.2819076,59319.0,59318.0,0.3608]
[1725000789118,0.3661926,59319.0,59318.0,0.3608]
[1725000790418,0.3661926,59319.0,59318.0,0.3618]
[1725000790727,0.3661926,59319.0,59318.0,0.37187289]
[1725000791620,0.3661926,59319.0,59318.0,0.37287289]
[1725000792017,0.1903076,59319.0,59318.0,0.45715989]
[1725000792318,0.19076118,59323.0,59320.0,0.084284]
[1725000792519,0.19076118,59323.0,59321.0,0.084282]
[1725000792722,0.08453103,59324.0,59321.0,0.084282]
[1725000793017,0.19076118,59323.0,59321.0,0.084282]
[1725000794020,0.19076118,59323.0,59322.0,0.084281]
[1725000794218,0.19076118,59323.0,59322.0,0.374281]
[1725000795019,0.31417757,59334.0,59322.0,0.6508]
[1725000795224,0.0461,59335.0,59333.0,0.3608]
[1725000795623,0.18034484,59334.0,59333.0,0.3608]
[1725000797220,0.18034484,59334.0,59333.0,0.445065]
[1725000797524,0.18034484,59334.0,59333.0,0.446065]
[1725000797919,0.18034484,59334.0,59333.0,0.584305]
[1725000799623,0.00025281,59339.0,59333.0,2.18564]
[1725000799838,0.0039,59351.0,59349.0,0.084243]
[1725000800026,0.0039,59351.0,59333.0,1.10004]
[1725000800027,0.177225,59362.0,59350.0,1.0116]
[1725000800326,0.18600718,59361.0,59350.0,1.0116]
[1725000800538,0.18600718,59361.0,59357.0,0.3608]
[1725000801620,0.18600718,59361.0,59357.0,0.3618]
[1725000801830,0.18600718,59361.0,59357.0,0.3628]
[1725000802413,0.084236,59354.0,59353.0,0.00025281]
[1725000802615,0.374236,59354.0,59353.0,0.00025281]
[1725000802822,1.94021523,59354.0,59344.0,0.0039]
[1725000803025,1.94021523,59354.0,59337.0,0.3608]
[1725000803026,0.3608,59345.0,59340.0,0.0039]
[1725000803230,0.084245,59348.0,59342.0,0.3608]
[1725000803231,0.0458,59344.0,59342.0,0.3608]
[1725000803425,0.24125673,59344.0,59339.0,0.084257]
[1725000803633,0.0448,59344.0,59339.0,0.084257]
[1725000803825,0.0438,59344.0,59339.0,0.084257]
[1725000804025,0.19545673,59343.0,59339.0,0.084257]
[1725000804428,0.19545673,59343.0,59342.0,0.002]
[1725000804623,0.19545673,59343.0,59342.0,0.3628]
[1725000805221,0.19545673,59343.0,59342.0,0.3608]
[1725000805722,0.24425673,59343.0,59342.0,0.3608]
[1725000806630,0.24425673,59343.0,59342.0,0.6508]
[1725000806827,0.24525673,59343.0,59342.0,0.6518]
[1725000807018,0.24725673,59343.0,59342.0,0.6528]
[1725000807424,0.24725673,59343.0,59342.0,0.3628]
[1725000808633,0.19845673,59343.0,59342.0,0.3628]
[1725000810638,0.28270773,59343.0,59342.0,0.3628]
[1725000811436,1.47247873,59343.0,59342.0,0.002]
[1725000811629,1.38822773,59343.0,59342.0,0.002]
[1725000811930,0.78822773,59343.0,59342.0,0.002]
[1725000812135,1.38822773,59343.0,59342.0,0.002]
[1725000816531,1.47247873,59343.0,59342.0,0.002]
[1725000816929,1.38822773,59343.0,59342.0,0.002]
[1725000817433,1.47247873,59343.0,59342.0,0.002]
[1725000817626,1.38822773,59343.0,59342.0,0.002]
[1725000817827,0.78822773,59343.0,59342.0,0.002]
[1725000818240,0.19845673,59343.0,59342.0,0.002]
[1725000818443,0.28270773,59343.0,59342.0,0.3628]
[1725000820930,0.28270773,59343.0,59342.0,0.002]
[1725000830131,0.33020773,59343.0,59342.0,0.002]
[1725000830536,1.80997873,59343.0,59342.0,0.002]
[1725000831046,0.08426,59337.0,59336.0,0.00025281]
[1725000831344,0.73506,59337.0,59336.0,0.00025281]
[1725000831537,0.91316085,59337.0,59336.0,0.00025281]
[1725000832344,2.01876085,59337.0,59327.0,0.0039]
[1725000832541,0.084277,59325.0,59324.0,0.0039]
[1725000832733,0.29,59328.0,59315.0,0.3647]
[1725000832939,0.084283,59321.0,59315.0,0.3608]
[1725000833239,0.18612118,59320.0,59315.0,0.3608]
[1725000833451,0.18512118,59320.0,59315.0,0.3608]
[1725000834145,0.26940618,59320.0,59315.0,0.3888]
[1725000834737,0.27240618,59320.0,59315.0,0.3608]
[1725000834940,0.27540618,59320.0,59315.0,0.3608]
[1725000835843,0.19112118,59320.0,59315.0,0.3608]
[1725000836353,0.19112118,59320.0,59315.0,0.3618]
[1725000836354,0.084289,59317.0,59315.0,0.3618]
[1725000836751,0.19284183,59316.0,59315.0,0.3618]
[1725000837141,0.19284183,59316.0,59315.0,0.001]
[1725000837547,0.02719903,59316.0,59312.0,0.00025281]
[1725000837737,0.11148903,59316.0,59315.0,0.001]
[1725000837940,0.08429,59316.0,59315.0,0.001]
[1725000838142,0.27783386,59316.0,59315.0,0.001]
[1725000838342,0.083294,59313.0,59312.0,0.00025281]
[1725000838742,0.26665794,59313.0,59312.0,0.00025281]
[1725000839650,0.18336394,59313.0,59312.0,0.00025281]
[1725000839842,0.18111111,59313.0,59312.0,1.19034781]
[1725000840146,0.004,59317.0,59316.0,0.08429]
[1725000840349,0.00025281,59323.0,59318.0,0.084285]
[1725000840557,0.00025281,59323.0,59322.0,0.3608]
[1725000840853,0.18178963,59323.0,59322.0,0.3608]
[1725000842152,0.18478963,59323.0,59322.0,0.3608]
[1725000843149,0.18878963,59323.0,59322.0,0.3608]
[1725000843541,0.18478963,59323.0,59322.0,0.3608]
[1725000843742,0.18978963,59323.0,59322.0,0.37122353]
[1725000844245,0.18678963,59323.0,59322.0,0.37122353]
[1725000844446,0.18978963,59323.0,59322.0,0.37122353]
[1725000844847,0.18978963,59323.0,59322.0,2.05926453]
[1725000844848,0.00825281,59323.0,59322.0,2.05926453]
[1725000845353,0.00525281,59323.0,59322.0,2.05926453]
[1725000845650,0.00825281,59323.0,59322.0,2.05926453]
[1725000846254,0.00325281,59323.0,59322.0,2.05926453]
[1725000846454,0.00825281,59323.0,59322.0,1.32302453]
[1725000846654,0.00825281,59323.0,59322.0,0.95450453]
[1725000846852,0.00825281,59323.0,59322.0,0.95350453]
[1725000847045,0.00825281,59323.0,59322.0,0.81630453]
[1725000847247,0.00825281,59323.0,59322.0,0.95350453]
[1725000847857,0.00525281,59323.0,59322.0,0.95350453]
[1725000848051,0.00325281,59323.0,59322.0,0.95450453]
[1725000848958,0.00025281,59323.0,59322.0,0.95750453]
[1725000850759,0.00025281,59323.0,59322.0,0.95450453]
[1725000851060,0.00025281,59323.0,59322.0,0.95750453]
[1725000851454,0.00025281,59323.0,59322.0,0.73602353]
[1725000851656,0.19357106,59323.0,59322.0,0.73602353]
[1725000851857,0.19357106,59323.0,59322.0,0.87322353]
[1725000852048,0.19357106,59323.0,59322.0,0.73602353]
[1725000853655,0.19357106,59323.0,59322.0,0.73302353]
[1725000853855,0.19357106,59323.0,59322.0,0.73402353]
[1725000854553,0.19657106,59323.0,59322.0,0.73202353]
[1725000854752,0.20157106,59323.0,59322.0,0.73202353]
[1725000855260,0.19957106,59323.0,59322.0,0.73202353]
[1725000855454,0.19857106,59323.0,59322.0,0.73202353]
[1725000855655,0.28285106,59323.0,59322.0,0.73202353]
[1725000855861,0.084281,59322.0,59321.0,0.1372]
[1725000856249,0.084285,59320.0,59317.0,0.3608]
[1725000856562,0.1778012,59319.0,59318.0,0.1372]
[1725000856954,0.1778012,59321.0,59318.0,0.1372]
[1725000857163,0.00725281,59323.0,59318.0,0.1372]
[1725000857362,0.00725281,59323.0,59317.0,0.3608]
[1725000857658,0.18783374,59320.0,59317.0,0.3608]
[1725000857865,0.084285,59320.0,59317.0,0.3608]
[1725000858053,0.19083374,59319.0,59318.0,0.3608]
[1725000858656,0.27511874,59319.0,59318.0,0.3608]
[1725000859167,0.32271874,59319.0,59318.0,0.3608]
[1725000859363,0.08429,59316.0,59315.0,0.3608]
[1725000859675,0.27669634,59316.0,59315.0,0.3608]
[1725000861052,0.27769634,59316.0,59315.0,0.3608]
[1725000861756,0.19340634,59316.0,59315.0,0.3608]
[1725000862056,0.19340634,59316.0,59315.0,0.3618]
[1725000862868,0.19340634,59316.0,59315.0,0.446091]
[1725000863669,0.19340634,59316.0,59315.0,0.3618]
[1725000875191,0.19640634,59316.0,59315.0,0.3608]
[1725000876985,0.19940634,59316.0,59315.0,0.3618]
[1725000877189,0.20240634,59316.0,59315.0,0.3618]
[1725000878086,0.20240634,59316.0,59315.0,0.4818]
[1725000878694,0.20240634,59316.0,59315.0,0.4828]
[1725000880084,0.19540634,59316.0,59315.0,0.4818]
[1725000880387,0.20140634,59316.0,59315.0,0.4818]
[1725000881295,0.19540634,59316.0,59315.0,0.4808]
[1725000881498,0.19840634,59316.0,59315.0,0.4818]
[1725000881699,0.20140634,59316.0,59315.0,0.4818]
[1725000884287,0.19840634,59316.0,59315.0,0.4818]
[1725000884588,0.20140634,59316.0,59315.0,0.4818]
[1725000885300,0.20140634,59316.0,59315.0,0.566091]
[1725000886711,0.19840634,59316.0,59315.0,0.567091]
[1725000886896,0.19240634,59316.0,59315.0,0.570091]
[1725000887096,0.19240634,59316.0,59315.0,0.3658]
[1725000887297,0.084289,59317.0,59315.0,0.4868]
[1725000887498,0.084289,59317.0,59316.0,0.12]
[1725000887899,0.27214114,59317.0,59316.0,0.12]
[1725000888803,0.27614114,59317.0,59316.0,0.12]
[1725000890093,0.27214114,59317.0,59316.0,0.12]
[1725000890298,0.19185214,59317.0,59316.0,0.20429]
[1725000890507,0.19485214,59317.0,59316.0,0.20429]
[1725000891206,0.007,59317.0,59316.0,0.20429]
[1725000891911,0.004,59317.0,59316.0,0.20429]
[1725000892206,0.004,59317.0,59316.0,0.20829]
[1725000893498,0.004,59317.0,59316.0,0.20429]
[1725000893712,0.00025281,59323.0,59320.0,0.084284]
[1725000893900,0.00025281,59323.0,59321.0,0.12]
[1725000894103,0.18415562,59322.0,59321.0,0.12]
[1725000894302,0.18415562,59322.0,59320.0,0.3608]
[1725000894705,0.084282,59321.0,59320.0,0.3608]
[1725000894997,0.26270683,59321.0,59320.0,0.3608]
[1725000895598,0.26270683,59321.0,59320.0,0.3618]
[1725000897310,0.27270683,59321.0,59320.0,0.3628]
[1725000898305,0.26970683,59321.0,59320.0,0.3618]
[1725000898609,0.27270683,59321.0,59320.0,0.3628]
[1725000899909,0.26970683,59321.0,59320.0,0.3618]
[1725000900109,0.27270683,59321.0,59320.0,0.3628]
[1725000900718,0.26970683,59321.0,59320.0,0.3618]
[1725000901015,0.27270683,59321.0,59320.0,0.3628]
[1725000901913,0.27270683,59321.0,59320.0,0.3618]